bitfinex-derivatives/quotes_SOLF0:USTF0_20241015
["timestamp","ask_amount","ask_price","bid_price","bid_amount"]
[1728999357125,24.98,153.79,153.71,3.2532]
[1728999357427,6.24,153.78,153.69,7.6514]
[1728999357625,9.4919,153.78,153.74,3.2527]
[1728999357828,6.24,153.78,153.74,3.2527]
[1728999359238,6.24,153.78,153.69,7.6514]
[1728999360343,3.2525,153.75,153.69,1.4114]
[1728999360537,31.22,153.78,153.69,1.4114]
[1728999360938,3.2523,153.76,153.71,3.2532]
[1728999361438,9.4919,153.78,153.73,3.2527]
[1728999361637,6.24,153.78,153.69,1.4114]
[1728999362241,24.98,153.76,153.69,1.4114]
[1728999362740,24.98,153.73,153.65,6.24]
[1728999363043,3.2539,153.69,153.64,3.2548]
[1728999363246,24.98,153.71,153.62,7.627]
[1728999363740,24.98,153.71,153.6,2.8028]
[1728999363741,6.24,153.73,153.6,2.8028]
[1728999363942,24.98,153.7,153.6,2.8028]
[1728999364140,3.2539,153.69,153.64,3.2547]
[1728999364335,31.22,153.7,153.64,3.2547]
[1728999364541,31.22,153.7,153.61,1.387]
[1728999365247,31.22,153.7,153.6,2.8028]
[1728999365248,24.98,153.67,153.6,2.8028]
[1728999365439,6.24,153.66,153.6,2.8028]
[1728999365639,3.2549,153.64,153.6,2.8028]
[1728999365836,6.24,153.66,153.6,2.8028]
[1728999366947,3.2549,153.64,153.6,2.8028]
[1728999367150,6.24,153.66,153.6,2.8028]
[1728999367542,9.4945,153.66,153.61,3.2553]
[1728999367852,6.24,153.69,153.6,2.8028]
[1728999368247,3.2541,153.68,153.6,2.8028]
[1728999368844,3.2536,153.7,153.61,24.98]
[1728999369047,6.24,153.7,153.6,2.8028]
[1728999369243,31.22,153.7,153.61,3.2554]
[1728999369440,31.22,153.7,153.6,2.8028]
[1728999369646,24.98,153.68,153.6,2.8028]
[1728999370046,24.98,153.65,153.58,3.256]
[1728999370243,24.98,153.65,153.56,6.24]
[1728999370649,3.2551,153.63,153.56,6.24]
[1728999371052,24.98,153.65,153.58,3.2559]
[1728999371248,3.255,153.63,153.58,3.2559]
[1728999372051,6.24,153.66,153.54,1.3311]
[1728999372052,3.25358053,153.64,153.54,1.3311]
[1728999372250,31.22,153.66,153.54,1.3311]
[1728999372442,3.2549,153.64,153.6,3.2555]
[1728999372849,24.98,153.65,153.54,1.3311]
[1728999373049,3.2549,153.64,153.57,3.2562]
[1728999373254,6.24,153.66,153.56,24.98]
[1728999373451,76.54,153.71,153.61,24.98]
[1728999373654,6.24,153.71,153.62,2.6818]
[1728999373854,28.30379963,153.73,153.62,3.9917]
[1728999374159,6.24,153.72,153.62,3.9917]
[1728999374653,24.98,153.7,153.56,24.98]
[1728999374854,3.2549,153.64,153.6,3.2555]
[1728999375158,6.24,153.67,153.58,6.24]
[1728999375451,3.2548,153.65,153.61,3.2553]
[1728999375851,6.24,153.67,153.58,6.24]
[1728999376057,6.24,153.7,153.61,24.98]
[1728999376257,6.24,153.7,153.62,2.6047]
[1728999376558,6.24,153.72,153.62,8.8447]
[1728999376758,6.24,153.72,153.63,24.98]
[1728999377059,3.2527,153.74,153.7,3.2535]
[1728999377252,70.3,153.79,153.66,31.22]
[1728999377448,6.24,153.78,153.66,31.22]
[1728999377758,3.2524,153.76,153.66,31.22]
[1728999378155,3.252,153.78,153.68,24.98]
[1728999378460,6.24,153.78,153.69,2.8403]
[1728999378752,6.24,153.78,153.72,3.2529]
[1728999378961,3.2521,153.77,153.72,3.2529]
[1728999379153,6.24,153.79,153.69,2.8403]
[1728999379353,24.98,153.75,153.67,6.24]
[1728999379556,31.22,153.75,153.67,6.24]
[1728999379759,31.22,153.75,153.67,9.494]
[1728999379961,3.2532,153.72,153.67,6.24]
[1728999380555,9.4925,153.75,153.71,3.2532]
[1728999380858,6.24,153.78,153.69,24.98]
[1728999381061,3.2524,153.76,153.7,2.7236]
[1728999381260,6.24,153.78,153.7,2.7236]
[1728999382167,6.24,153.78,153.71,3.2532]
[1728999382665,24.98,153.77,153.64,24.98]
[1728999382862,24.98,153.77,153.65,6.24]
[1728999383067,6.24,153.78,153.72,3.2531]
[1728999383263,6.24,153.78,153.69,24.98]
[1728999383457,3.2516,153.8,153.7,2.6555]
[1728999383658,6.24,153.81,153.71,24.98]
[1728999383865,6.24,153.82,153.71,24.98]
[1728999384064,24.98,153.86,153.78,3.2518]
[1728999384065,3.17400123,153.85,153.78,3.2518]
[1728999384265,6.24,153.84,153.74,24.98]
[1728999384665,6.24,153.84,153.76,3.2521]
[1728999384863,6.24,153.84,153.74,24.98]
[1728999385262,3.2511,153.82,153.78,3.2517]
[1728999385470,6.24,153.86,153.76,24.98]
[1728999385769,3.251,153.83,153.78,3.2517]
[1728999386072,3.251,153.83,153.77,2.5922]
[1728999386073,6.24,153.86,153.77,2.5922]
[1728999386571,3.2509,153.83,153.79,3.2515]
[1728999387661,6.24,153.86,153.77,2.5922]
[1728999388373,3.2514,153.81,153.77,2.5922]
[1728999388574,6.24,153.86,153.77,2.5922]
[1728999388873,3.2514,153.81,153.77,5.8441]
[1728999389176,24.98,153.84,153.74,6.46]
[1728999389476,24.98,153.84,153.76,3.2523]
[1728999389674,24.98,153.84,153.74,6.46]
[1728999389876,24.98,153.84,153.74,31.44]
[1728999390367,6.24,153.86,153.79,3.2515]
[1728999390774,6.24,153.86,153.74,31.44]
[1728999391773,24.98,153.84,153.74,6.46]
[1728999392364,24.98,153.84,153.71,27.6665]
[1728999392570,3.252,153.78,153.75,3.2523]
[1728999392769,6.46,153.82,153.72,6.46]
[1728999393067,6.46,153.82,153.74,24.98]
[1728999393573,9.7112,153.82,153.74,24.98]
[1728999393969,6.46,153.86,153.76,24.98]
[1728999394181,6.46,153.86,153.76,31.44]
[1728999394478,6.46,153.86,153.74,24.98]
[1728999394479,6.46,153.86,153.77,3.252]
[1728999394671,31.44,153.86,153.77,3.252]
[1728999395366,31.44,153.86,153.75,6.46]
[1728999395569,6.46,153.86,153.75,6.46]
[1728999395771,24.98,153.91,153.78,24.98]
[1728999395971,6.46,153.91,153.81,24.98]
[1728999396380,3.25,153.87,153.81,24.98]
[1728999396577,6.46,153.91,153.81,24.98]
[1728999397174,6.46,153.91,153.83,3.2506]
[1728999397377,6.46,153.91,153.81,24.98]
[1728999397980,3.2498,153.88,153.79,10.4784]
[1728999398183,31.44,153.91,153.79,10.4784]
[1728999398584,3.2505,153.85,153.81,3.2511]
[1728999398878,24.98,153.88,153.79,4.0184]
[1728999399081,3.2511,153.82,153.79,5.9372]
[1728999399492,6.44,153.87,153.8,3.2513]
[1728999399786,6.44,153.87,153.79,2.6857]
[1728999400085,24.98,153.91,153.79,27.6657]
[1728999400277,6.44,153.9,153.79,27.6657]
[1728999400780,3.25,153.87,153.79,27.6657]
[1728999400979,6.44,153.9,153.79,27.6657]
[1728999400980,24.98,153.88,153.79,2.6857]
[1728999401186,3.2503,153.86,153.8,3.2513]
[1728999401381,24.98,153.88,153.8,3.2513]
[1728999401781,3.2509,153.83,153.8,3.2513]
[1728999402089,24.98,153.88,153.8,3.2514]
[1728999403081,3.2509,153.83,153.8,3.2514]
[1728999404288,3.2507,153.84,153.81,3.2511]
[1728999404489,24.98,153.91,153.79,2.6857]
[1728999404691,24.98,153.91,153.8,24.98]
[1728999404888,31.42,153.91,153.85,3.2502]
[1728999405189,6.44,153.91,153.8,24.98]
[1728999405383,6.44,153.91,153.85,3.2503]
[1728999405780,3.25,153.87,153.85,3.2503]
[1728999406088,6.44,153.91,153.84,3.2505]
[1728999406485,6.44,153.91,153.8,24.98]
[1728999406692,3.2498,153.88,153.85,3.2503]
[1728999407490,6.44,153.91,153.8,24.98]
[1728999407796,31.42,153.93,153.82,31.42]
[1728999408098,3.2494,153.9,153.86,3.2501]
[1728999408284,3.2494,153.9,153.83,1.3252]
[1728999408788,31.42,153.93,153.83,1.3252]
[1728999408994,24.98,153.91,153.83,1.3252]
[1728999409189,3.2499,153.88,153.84,3.2504]
[1728999409496,24.98,153.91,153.83,1.3252]
[1728999409894,24.98,153.91,153.84,3.2506]
[1728999410392,3.2499,153.88,153.85,3.2503]
[1728999410598,6.44,153.95,153.83,1.3252]
[1728999411197,24.98,153.96,153.85,24.98]
[1728999411399,6.44,153.95,153.86,9.2107]
[1728999411690,31.42,153.96,153.86,9.2107]
[1728999411889,3.249,153.92,153.86,9.2107]
[1728999412289,3.249,153.92,153.89,3.2495]
[1728999412686,31.42,153.96,153.86,9.2107]
[1728999412893,3.2487,153.93,153.86,9.2107]
[1728999413693,3.2487,153.93,153.89,3.2494]
[1728999413899,24.98,153.99,153.86,9.2107]
[1728999414201,3.2487,153.93,153.89,3.2493]
[1728999414496,3.2790511,153.97,153.86,9.2107]
[1728999414698,3.2492,153.91,153.88,3.2497]
[1728999416091,9.5684,153.95,153.91,3.249]
[1728999416391,6.32,153.95,153.87,24.98]
[1728999416892,3.2486,153.94,153.9,3.2492]
[1728999417795,6.32,153.95,153.87,24.98]
[1728999418000,411.24,154.03,153.87,24.98]
[1728999418001,6.32,153.98,153.87,24.98]
[1728999418198,6.32,153.99,153.87,24.98]
[1728999418598,3.2483,153.95,153.91,3.2489]
[1728999418798,9.50880792,153.99,153.87,24.98]
[1728999418998,24.98,154.0,153.87,24.98]
[1728999419201,6.32,153.98,153.87,24.98]
[1728999419401,31.3,154.0,153.9,24.98]
[1728999419598,3.2481,153.96,153.92,3.2488]
[1728999421095,3.2478,153.98,153.9,6.32]
[1728999421296,31.3,154.0,153.94,3.2483]
[1728999421906,31.3,154.0,153.9,6.32]
[1728999422290,3.248,153.97,153.9,6.32]
[1728999422503,31.3,154.0,153.92,3.2489]
[1728999422718,31.3,154.0,153.9,6.32]
[1728999423004,31.3,154.0,153.88,6.32]
[1728999423005,24.98,153.98,153.88,6.32]
[1728999423202,24.98,153.98,153.89,3.2494]
[1728999423404,3.2488,153.93,153.89,3.2494]
[1728999423698,3.2488,153.93,153.9,3.2491]
[1728999423899,6.32,153.96,153.88,6.32]
[1728999424107,6.32,153.99,153.94,3.2483]
[1728999424396,341.0,154.05,153.92,31.3]
[1728999424397,6.32,154.04,153.92,31.3]
[1728999424594,6.32,154.05,153.95,24.98]
[1728999424792,6.32,154.05,153.96,6.32]
[1728999425200,3.2465,154.04,153.96,6.32]
[1728999425709,3.2466,154.03,154.0,3.247]
[1728999426210,3.2466,154.03,154.01,3.247]
[1728999426696,6.32,154.05,153.96,6.32]
[1728999427506,3.2466,154.03,154.0,3.247]
[1728999428100,3.2469,154.02,153.98,3.2474]
[1728999428500,9.54927098,154.05,153.96,6.32]
[1728999429006,34.52927098,154.05,153.93,29.0646]
[1728999429206,34.52927098,154.05,153.94,6.32]
[1728999429395,3.2474,153.99,153.96,3.2479]
[1728999429596,34.52927098,154.05,153.94,6.32]
[1728999430199,24.98,154.02,153.94,6.32]
[1728999430699,24.98,153.98,153.89,6.32]
[1728999430902,6.32,153.98,153.88,31.3]
[1728999431300,3.2483,153.95,153.88,31.3]
[1728999431506,6.32,153.98,153.88,31.3]
[1728999431695,9.72428539,154.03,153.91,24.98]
[1728999431696,6.32,154.01,153.91,24.98]
[1728999431900,6.32,154.01,153.93,24.98]
[1728999432104,31.3,154.05,153.94,1.3247]
[1728999432301,3.2467,154.03,153.97,3.2478]
[1728999432502,3.2467,154.03,153.94,1.3247]
[1728999432503,6.32,154.05,153.94,1.3247]
[1728999432905,3.2468,154.02,153.94,1.3247]
[1728999433410,24.98,154.08,153.94,1.3247]
[1728999433608,3.2467,154.03,153.94,1.3247]
[1728999434409,6.32,154.07,153.97,3.2476]
[1728999434609,6.32,154.07,153.96,31.3]
[1728999435007,24.98,154.1,153.99,24.98]
[1728999435211,24.98,154.1,154.0,9.0153]
[1728999435711,3.2455,154.08,154.01,1.4009]
[1728999435920,24.98,154.1,154.01,1.4009]
[1728999436217,3.20036688,154.14,154.01,1.4009]
[1728999436406,6.32,154.19,154.01,1.4009]
[1728999436603,3.2448,154.12,154.07,3.2456]
[1728999436804,24.98,154.14,154.04,6.32]
[1728999437108,28.17355836,154.19,154.04,6.32]
[1728999437310,0.99191303,154.18,154.05,24.98]
[1728999437910,3.2444,154.14,154.09,3.2452]
[1728999438109,3.2444,154.14,154.05,24.98]
[1728999438416,34.49355836,154.19,154.07,3.2456]
[1728999438417,3.2441,154.15,154.07,3.2456]
[1728999438610,6.32,154.15,154.04,6.32]
[1728999438915,24.98,154.14,154.03,6.32]
[1728999439118,24.98,154.11,154.03,6.32]
[1728999439424,31.3,154.11,154.01,1.4009]
[1728999439620,3.2453,154.09,154.01,1.4009]
[1728999439817,31.3,154.11,154.01,1.4009]
[1728999440017,3.2454,154.09,154.04,3.2462]
[1728999440220,3.2454,154.09,154.01,1.4009]
[1728999440525,31.3,154.11,154.01,1.4009]
[1728999440724,3.2456,154.08,154.03,3.2464]
[1728999442125,31.3,154.11,154.01,1.4009]
[1728999442126,34.57521819,154.11,154.01,1.4009]
[1728999442520,3.2455,154.08,154.01,4.6477]
[1728999442721,34.57521819,154.11,154.01,1.4009]
[1728999443120,3.246,154.06,154.02,3.2466]
[1728999443619,3.2462,154.05,154.02,3.2466]
[1728999443824,3.2462,154.05,154.01,4.6478]
[1728999444721,34.57521819,154.11,154.01,1.4009]
[1728999444916,34.57521819,154.11,154.0,2.6953]
[1728999444917,3.2466,154.03,154.0,2.6953]
[1728999445617,3.2463,154.05,154.0,5.9424]
[1728999445822,24.98,154.09,154.0,5.9424]
[1728999446124,24.98,154.09,154.0,2.6953]
[1728999446422,9.59521819,154.11,154.0,2.6953]
[1728999446423,34.57521819,154.11,154.0,2.6953]
[1728999446615,6.08,154.1,154.01,6.08]
[1728999447421,3.2461,154.06,154.02,3.2466]
[1728999448224,3.2457,154.07,154.01,6.08]
[1728999448522,24.98,154.14,154.01,6.08]
[1728999448723,6.08,154.13,154.02,24.98]
[1728999449124,6.08,154.12,154.02,24.98]
[1728999449327,6.08,154.12,154.04,3.2463]
[1728999449629,3.2456,154.08,154.04,3.2463]
[1728999449822,6.08,154.12,154.06,3.2459]
[1728999450024,3.2449,154.11,154.03,1.301]
[1728999450219,6.08,154.13,154.03,1.301]
[1728999450426,70.14,154.16,154.06,3.2457]
[1728999450631,3.2447,154.12,154.07,24.98]
[1728999450821,3.19355836,154.19,154.07,24.98]
[1728999451023,6.08,154.19,154.1,3.2451]
[1728999451229,3.2444,154.14,154.1,3.2451]
[1728999452326,3.27576702,154.18,154.08,2.6007]
[1728999452526,3.2445,154.13,154.08,2.6007]
[1728999452927,3.2445,154.13,154.1,3.2451]
[1728999453121,3.2442,154.15,154.08,2.6007]
[1728999453325,6.08,154.19,154.08,2.6007]
[1728999453531,9.3875895,154.19,154.09,3.2451]
[1728999453731,3.2446,154.13,154.08,2.6007]
[1728999454127,9.3875895,154.19,154.08,2.6007]
[1728999455735,3.2445,154.13,154.1,3.245]
[1728999456135,3.2437,154.17,154.1,24.98]
[1728999456332,24.98,154.23,154.1,24.98]
[1728999456333,6.08,154.2,154.11,1.3359]
[1728999456736,9.31899711,154.2,154.11,1.3359]
[1728999456934,229.0,154.31,154.15,24.98]
[1728999456935,576.4816,154.31,154.15,24.98]
[1728999457234,3.19886597,154.25,154.15,31.06]
[1728999457432,3.2426,154.22,154.19,3.2431]
[1728999457634,3.19886597,154.25,154.15,31.06]
[1728999457831,3.19886597,154.25,154.16,2.7532]
[1728999458032,6.08,154.26,154.17,3.2435]
[1728999458333,6.08,154.26,154.16,2.7532]
[1728999458732,3.2425,154.23,154.2,3.243]
[1728999459540,6.08,154.26,154.19,3.2431]
[1728999459731,6.08,154.26,154.16,2.7532]
[1728999460238,3.2427,154.22,154.16,2.7532]
[1728999460634,3.2423,154.24,154.16,2.7532]
[1728999460832,6.08,154.26,154.16,2.7532]
[1728999461135,3.2433,154.19,154.16,3.2438]
[1728999462235,6.08,154.22,154.15,6.08]
[1728999462534,3.2429,154.21,154.17,3.2435]
[1728999462737,6.08,154.22,154.15,31.06]
[1728999463041,6.08,154.22,154.17,3.2434]
[1728999463537,3.2429,154.21,154.17,3.2434]
[1728999463928,3.2429,154.21,154.17,3.2435]
[1728999464239,3.2429,154.21,154.15,31.06]
[1728999464240,6.08,154.22,154.15,6.08]
[1728999464636,3.243,154.2,154.15,6.08]
[1728999464939,6.08,154.22,154.16,3.2437]
[1728999465632,3.2432,154.19,154.16,3.2437]
[1728999467135,3.2431,154.2,154.17,3.2434]
[1728999467340,3.2431,154.2,154.15,6.08]
[1728999467732,3.2431,154.2,154.17,3.2435]
[1728999468246,24.98,154.3,154.15,31.06]
[1728999468436,7.07115123,154.29,154.18,24.98]
[1728999468639,3.2421,154.25,154.19,8.8173]
[1728999468843,9.39732458,154.34,154.23,24.98]
[1728999469045,0.99087468,154.33,154.23,24.98]
[1728999469236,0.99087468,154.33,154.21,31.06]
[1728999469447,6.08,154.32,154.21,31.06]
[1728999469839,3.2415,154.27,154.23,3.2423]
[1728999470144,6.08,154.32,154.21,31.06]
[1728999470344,3.2413,154.28,154.23,3.2422]
[1728999471237,3.2413,154.28,154.21,31.06]
[1728999471238,3.2412,154.29,154.24,3.242]
[1728999471438,6.08,154.32,154.21,31.06]
[1728999472046,3.2414,154.28,154.22,3.2424]
[1728999472244,3.2414,154.28,154.21,31.06]
[1728999472747,6.08,154.32,154.21,28.2226]
[1728999472942,6.08,154.32,154.22,6.08]
[1728999473246,3.2419,154.25,154.21,24.98]
[1728999473545,24.98,154.31,154.2,6.08]
[1728999473747,3.2414,154.28,154.22,3.2425]
[1728999474042,24.98,154.31,154.22,3.2425]
[1728999474245,24.98,154.31,154.19,4.1055]
[1728999474442,24.98,154.29,154.19,10.1855]
[1728999474744,6.08,154.28,154.19,10.1855]
[1728999474946,3.2424,154.23,154.19,7.3486]
[1728999475139,6.08,154.28,154.19,4.1055]
[1728999475546,3.242,154.25,154.21,3.2426]
[1728999476749,3.2425,154.23,154.19,4.1055]
[1728999476942,6.08,154.28,154.19,4.1055]
[1728999477250,3.2421,154.25,154.21,3.2427]
[1728999477449,6.08,154.28,154.19,4.1055]
[1728999477647,3.2415,154.28,154.24,3.242]
[1728999477846,30.82,154.33,154.19,4.1055]
[1728999478245,3.2414,154.28,154.24,3.242]
[1728999478541,5.84,154.32,154.22,5.84]
[1728999478844,5.84,154.32,154.19,4.1055]
[1728999479049,5.84,154.32,154.22,5.84]
[1728999479549,3.2416,154.27,154.24,3.2421]
[1728999479842,24.98,154.35,154.22,5.84]
[1728999480048,0.99068159,154.34,154.22,5.84]
[1728999480243,30.82,154.35,154.24,24.98]
[1728999480548,30.82,154.35,154.25,5.84]
[1728999480738,3.2414,154.28,154.25,9.0818]
[1728999480942,3.2414,154.28,154.25,3.2418]
[1728999481538,3.30826901,154.36,154.24,30.82]
[1728999481748,5.84,154.34,154.24,30.82]
[1728999482047,3.2408,154.31,154.27,3.2414]
[1728999482248,3.2408,154.31,154.24,30.82]
[1728999482645,3.2409,154.3,154.27,3.2413]
[1728999483343,3.2408,154.31,154.28,3.2413]
[1728999483842,5.84,154.34,154.24,30.82]
[1728999484048,3.241,154.3,154.24,30.82]
[1728999484552,3.2411,154.29,154.24,30.82]
[1728999484849,30.82,154.34,154.21,24.98]
[1728999485044,30.82,154.34,154.22,9.0825]
[1728999485045,3.2419,154.26,154.22,9.0825]
[1728999485650,3.2415,154.27,154.24,3.2421]
[1728999486450,3.2414,154.28,154.24,3.2421]
[1728999486652,30.82,154.34,154.24,3.2421]
[1728999487044,30.82,154.34,154.22,5.84]
[1728999487357,30.82,154.34,154.23,3.2423]
[1728999487554,3.2421,154.25,154.21,5.84]
[1728999487747,3.2421,154.25,154.22,3.2425]
[1728999488956,5.84,154.3,154.21,30.82]
[1728999489252,5.84,154.33,154.24,24.98]
[1728999490041,3.2408,154.31,154.26,3.2416]
[1728999490246,5.84,154.33,154.26,3.2416]
[1728999490551,3.28264225,154.35,154.26,3.2416]
[1728999490742,3.241,154.3,154.24,24.98]
[1728999491053,3.241,154.3,154.25,5.84]
[1728999491247,3.241,154.3,154.27,3.2415]
[1728999492054,3.2407,154.31,154.27,3.2415]
[1728999493348,3.2404,154.33,154.29,3.241]
[1728999494254,3.2404,154.33,154.26,29.0939]
[1728999494848,3.2404,154.33,154.29,3.2409]
[1728999495452,3.241,154.3,154.26,7.3556]
[1728999495656,24.98,154.35,154.26,4.1139]
[1728999495855,15.56,154.33,154.26,4.1139]
[1728999496157,15.56,154.33,154.26,7.3556]
[1728999496458,3.241,154.3,154.27,3.2415]
[1728999496659,15.56,154.33,154.27,3.2415]
[1728999497556,3.2411,154.29,154.27,3.2415]
[1728999497750,15.56,154.33,154.27,3.2415]
[1728999497955,3.2408,154.31,154.28,3.2412]
[1728999498156,15.56,154.33,154.28,3.2412]
[1728999498358,21.4,154.33,154.26,2.7125]
[1728999499066,3.2407,154.31,154.26,2.7125]
[1728999499567,6.4783,154.39,154.27,21.4]
[1728999499862,22.39039502,154.38,154.31,3.2405]
[1728999500056,0.99039502,154.37,154.28,1.3924]
[1728999500256,18.81995675,154.38,154.28,1.3924]
[1728999500257,3.2402,154.34,154.31,3.2405]
[1728999500461,5.84,154.39,154.29,15.56]
[1728999500661,5.84,154.39,154.31,15.56]
[1728999500851,3.2399,154.35,154.32,3.2404]
[1728999501659,3.2403,154.33,154.3,3.2408]
[1728999502163,15.56,154.38,154.29,15.56]
[1728999502364,21.4,154.4,154.31,15.56]
[1728999502564,15.56,154.4,154.31,21.4]
[1728999502867,15.56,154.4,154.33,3.2401]
[1728999503070,15.56,154.4,154.31,21.4]
[1728999503256,5.84,154.41,154.31,21.4]
[1728999503451,15.56,154.44,154.35,15.56]
[1728999503858,15.56,154.42,154.33,15.56]
[1728999504057,18.78268654,154.42,154.33,5.84]
[1728999504266,15.56,154.4,154.28,1.3924]
[1728999504458,15.56,154.4,154.3,15.56]
[1728999505054,3.2395,154.37,154.34,3.2399]
[1728999506566,3.2393,154.38,154.34,3.2399]
[1728999507069,21.4,154.42,154.36,3.2395]
[1728999507265,21.4,154.42,154.33,8.5578]
[1728999507668,3.239,154.39,154.35,3.2397]
[1728999507866,3.239,154.39,154.33,8.5578]
[1728999508566,59.21833179,154.6,154.38,15.56]
[1728999508770,3.18902469,154.54,154.39,1.3105]
[1728999509068,15.56,154.53,154.44,3.2377]
[1728999509369,15.56,154.53,154.43,15.56]
[1728999509569,3.2363,154.52,154.48,3.237]
[1728999509767,5.82,154.54,154.45,15.56]
[1728999510161,70.02,154.62,154.45,15.56]
[1728999510358,15.56,154.59,154.48,15.56]
[1728999510563,21.38,154.59,154.49,15.56]
[1728999510867,3.2356,154.56,154.5,3.2365]
[1728999511367,3.2353,154.57,154.51,3.2364]
[1728999511668,15.56,154.54,154.49,1.4054]
[1728999511865,15.56,154.52,154.42,15.56]
[1728999512758,5.82,154.53,154.44,15.56]
[1728999512759,15.56,154.53,154.44,15.56]
[1728999513066,15.56,154.53,154.45,5.82]
[1728999513771,21.38,154.55,154.46,15.56]
[1728999513962,21.38,154.55,154.46,18.2735]
[1728999514164,3.2363,154.52,154.46,21.511]
[1728999514365,21.38,154.55,154.46,18.2735]
[1728999514565,21.38,154.55,154.47,1.4082]
[1728999514765,3.2361,154.53,154.47,4.6455]
[1728999514973,21.38,154.55,154.47,4.6455]
[1728999515159,21.38,154.55,154.47,1.4082]
[1728999515364,3.2366,154.51,154.47,1.4082]
[1728999516169,5.82,154.55,154.47,1.4082]
[1728999517366,1.285,154.61,154.49,24.89]
[1728999517561,7.105,154.61,154.49,24.89]
[1728999517771,7.105,154.61,154.48,5.82]
[1728999517772,7.505,154.61,154.52,24.89]
[1728999517964,3.2351,154.58,154.52,24.89]
[1728999518162,7.505,154.61,154.52,24.89]
[1728999518872,7.505,154.61,154.49,24.89]
[1728999519166,3.236,154.54,154.5,3.2365]
[1728999519470,7.505,154.61,154.49,24.89]
[1728999519975,7.505,154.61,154.47,1.4082]
[1728999520274,3.2368,154.5,154.47,1.4082]
[1728999522270,6.22,154.54,154.48,3.2371]
[1728999522473,24.89,154.59,154.47,26.2982]
[1728999522669,6.22,154.58,154.47,26.2982]
[1728999522978,6.22,154.58,154.49,28.1267]
[1728999523178,6.22,154.58,154.49,24.89]
[1728999523379,3.2359,154.54,154.5,3.2366]
[1728999524276,6.22,154.58,154.47,26.2982]
[1728999524584,24.89,154.57,154.42,32.399]
[1728999525272,3.2371,154.49,154.42,32.399]
[1728999525480,6.22,154.52,154.45,24.89]
[1728999525673,3.2366,154.51,154.47,3.2371]
[1728999525876,6.22,154.52,154.45,24.89]
[1728999526075,6.22,154.52,154.42,7.509]
[1728999526076,6.22,154.55,154.47,24.89]
[1728999526272,3.2359,154.54,154.5,3.2366]
[1728999526582,3.2359,154.54,154.49,24.89]
[1728999527081,3.2359,154.54,154.5,3.2366]
[1728999528182,3.2358,154.55,154.51,3.2364]
[1728999528576,6.22,154.64,154.51,24.89]
[1728999528876,6.22,154.64,154.54,3.2357]